[Event "Nakhchivan Open 2024"]
[Site "Nakhchivan"]
[Date "2024.01.14"]
[Round "8.4"]
[White "Kul, Ozdemir Efe"]
[Black "Karimov, Hasan"]
[Result "1-0"]
[ECO "C26"]
[WhiteElo "2223"]
[BlackElo "1271"]
[Annotator "RC"]
[PlyCount "101"]
[EventDate "2024.01.11"]
[EventType "swiss"]
[EventCountry "AZE"]
[SourceTitle "playchess.com"]
[Source "ChessBase"]
[SourceQuality "1"]
[TimeControl "5400+30"]

1. e4 {[%emt 0:05:44]} e5 {[%emt 0:00:10]} 2. Nc3 {[%emt 0:00:15]} Nf6 {[%emt 0:00:22]} 3. g3 {[%emt 0:00:12]} Bc5 {[%emt 0:00:22]} 4. Bg2 {[%emt 0:00:15]} O-O {[%emt 0:00:31]} 5. h3 {[%emt 0:00:13]} Nc6 {[%emt 0:00:53]} 6. Nge2 {[%emt 0:00:13]} d6 {[%emt 0:01:33]} 7. O-O {[%emt 0:00:24]} h6 {[%emt 0:00:17]} 8. d3 {[%emt 0:00:19]} a6 {[%emt 0:00:27]} 9. Be3 {[%emt 0:01:21]} Nd4 {[%emt 0:01:34]} 10. Bxd4 {[%emt 0:08:15]} Bxd4 {[%emt 0:00:29]} 11. Nxd4 {[%emt 0:00:28]} exd4 {[%emt 0:00:03]} 12. Ne2 {[%emt 0:00:24]} c5 {[%emt 0:00:23]} 13. f4 {[%emt 0:00:32]} Nh7 {[%emt 0:00:46]} 14. Kh2 {[%emt 0:01:39]} f5 {[%emt 0:05:08]} 15. exf5 {[%emt 0:00:52]} Rxf5 {[%emt 0:01:10]} 16. g4 {[%emt 0:00:28]} Rf8 {[%emt 0:00:41]} 17. f5 {[%emt 0:02:33]} d5 {[%emt 0:06:19]} 18. Nf4 {[%emt 0:00:25]} Nf6 {[%emt 0:02:53]} 19. Qf3 {[%emt 0:01:01]} Qd6 {[%emt 0:01:53]} 20. Kg1 {[%emt 0:00:27]} Bd7 {[%emt 0:04:03]} 21. Nxd5 {[%emt 0:01:33]} Bc6 {[%emt 0:00:59]} 22. Qf4 {[%emt 0:00:36]} Rad8 {[%emt 0:06:11]} 23. Qxd6 {[%emt 0:01:55]} Rxd6 {[%emt 0:01:34]} 24. Ne7+ {[%emt 0:01:19]} Kf7 {[%emt 0:01:01]} 25. Nxc6 {[%emt 0:02:26]} bxc6 {[%emt 0:00:35]} 26. Rae1 {[%emt 0:00:43]} Rfd8 {[%emt 0:02:32]} 27. Re5 {[%emt 0:01:14]} Nd5 {[%emt 0:05:53]} 28. Rfe1 {[%emt 0:01:01]} R8d7 {[%emt 0:04:32]} 29. b3 {[%emt 0:06:32]} a5 {[%emt 0:06:22]} 30. a4 {[%emt 0:00:40]} Kf8 {[%emt 0:04:00]} 31. Re8+ {[%emt 0:02:16]} Kf7 {[%emt 0:01:10]} 32. Ra8 {[%emt 0:00:12]} Ne3 {[%emt 0:00:39]} 33. Re2 {[%emt 0:00:30]} g6 {[%emt 0:01:18]} 34. fxg6+ {[%emt 0:00:19]} Rxg6 {[%emt 0:00:45]} 35. Rxa5 {[%emt 0:00:26]} h5 {[%emt 0:02:16]} 36. Rxc5 {[%emt 0:01:33]} hxg4 {[%emt 0:00:43]} 37. Rxc6 {[%emt 0:01:18]} Rxc6 {[%emt 0:03:15]} 38. Bxc6 {[%emt 0:00:02]} Rc7 {[%emt 0:00:28]} 39. Bg2 {[%emt 0:04:09]} g3 {[%emt 0:03:09]} 40. Be4 {[%emt 0:01:47]} Kf6 {[%emt 0:01:29]} 41. h4 {[%emt 0:00:53]} Ke5 {[%emt 0:00:39]} 42. h5 {[%emt 0:00:32]} Rf7 {[%emt 0:00:36]} 43. Re1 {[%emt 0:01:58]} Rf2 {[%emt 0:02:25]} 44. h6 {[%emt 0:00:35]} Rxc2 {[%emt 0:05:00]} 45. h7 {[%emt 0:00:50]} Rc8 {[%emt 0:00:04]} 46. a5 {[%emt 0:00:35]} Rf8 {[%emt 0:04:49]} 47. a6 {[%emt 0:00:41]} Nd5 {[%emt 0:02:31]} 48. a7 {[%emt 0:01:09]} Nc7 {[%emt 0:00:15]} 49. a8=Q Nxa8 {[%emt 0:00:43]} 50. Bxa8+ {[%emt 0:00:43]} Kd6 {[%emt 0:00:13]} 51. Be4 {[%emt 0:00:08]} 1-0

[Event "Nakhchivan Open 2024"]
[Site "Nakhchivan"]
[Date "2024.01.14"]
[Round "8.5"]
[White "Garayev, Sadig"]
[Black "Baghirov, Mahammad"]
[Result "0-1"]
[ECO "B00"]
[WhiteElo "2008"]
[BlackElo "1621"]
[Annotator "TA"]
[PlyCount "82"]
[EventDate "2024.01.11"]
[EventType "swiss"]
[EventCountry "AZE"]
[SourceTitle "playchess.com"]
[Source "ChessBase"]
[SourceQuality "1"]
[TimeControl "5400+30"]

{[%evp 9,82,22,24,21,28,24,38,45,31,39,35,45,41,5,18,-8,16,-17,9,-27,0,-16,-21,-54,-22,-30,-7,-32,-24,-26,-16,-26,-7,-17,0,-15,0,-35,13,0,0,0,24,6,90,90,100,85,103,51,41,37,62,45,78,58,75,69,852,839,744,673,572,0,0,0,0,-48,188,-1541,-1209,-29981,-29982,-29982,-29983]} 1. e4 {[%emt 0:03:06]} b6 {[%emt 0:00:06]} 2. d4 {[%emt 0:00:47]} Bb7 {[%emt 0:00:02]} 3. Bd3 {[%emt 0:01:04]} Nf6 {[%emt 0:00:05]} 4. f3 {[%emt 0:02:39]} e6 {[%emt 0:00:11]} 5. Ne2 {[%emt 0:03:37]} c5 {[%emt 0:02:48]} 6. c3 {[%emt 0:03:32][%cal Bc2c3,Bc3d4][%mdl 32]} Nc6 {[%emt 0:00:59]} 7. O-O {[%emt 0:01:51]} cxd4 {[%emt 0:02:09]} 8. cxd4 {[%emt 0:00:47] Weiß steht etwas besser.} Nb4 {[%emt 0:00:07]} 9. Nbc3 {[%emt 0:02:43]} Nxd3 {[%emt 0:00:02]} 10. Qxd3 {[%emt 0:00:09]} Be7 {[%emt 0:01:45]} 11. Be3 {[%emt 0:07:45]} O-O {[%emt 0:04:45]} 12. Rad1 {[%emt 0:02:37]} d6 {[%emt 0:00:19]} 13. Kh1 {[%emt 0:07:18]} a6 {[%emt 0:01:50]} 14. a4 {[%emt 0:03:20]} Rc8 {[%emt 0:04:04]} 15. Rc1 {[%emt 0:17:09]} Re8 {[%emt 0:02:09]} 16. Bg1 {[%emt 0:00:58]} Bf8 {[%emt 0:02:42]} 17. Ng3 {[%emt 0:02:35]} g6 {[%emt 0:02:14]} 18. Nce2 {[%emt 0:02:22]} h5 {[%emt 0:00:25] und nun wäre ...h4 stark für Schwarz.} 19. Rxc8 {[%emt 0:01:28]} Qxc8 {[%emt 0:00:12]} 20. Rc1 {[%emt 0:00:25]} Qd7 {[%emt 0:00:02]} 21. Qb3 {[%emt 0:00:31]} h4 {[%emt 0:00:16]} 22. Nf1 {[%emt 0:00:07] [#]} (22. Qxb6 $5 Rc8 (22... hxg3 23. Rc7 $16) 23. Rxc8 Qxc8 (23... Bxc8 24. Nf1 $17) 24. Nf1 $11) 22... h3 $1 {[%emt 0:00:01]} 23. Qxb6 {[%emt 0:01:41] Rc7 ist eine echte Drohung.} hxg2+ {[%emt 0:03:31]} 24. Kxg2 {[%emt 0:00:49]} Rb8 {[%emt 0:00:54][%cal Of6e4]} 25. Qc7 {[%emt 0:04:42]} Qe8 {[%emt 0:00:32][%cal Of6e4]} 26. Be3 {[%emt 0:08:18]} Nxe4 {[%emt 0:04:11]} 27. fxe4 $16 {[%emt 0:02:38]} Bxe4+ {[%emt 0:00:03]} 28. Kf2 {[%emt 0:00:52]} Rxb2 {[%emt 0:00:34][%cal Od6d5]} 29. Nfg3 {[%emt 0:01:28]} (29. Nd2 $16 Bf5 30. Nc4) 29... Bb7 {[%emt 0:02:55]} 30. Rc2 {[%emt 0:04:20]} Rb3 {[%emt 0:00:52][%cal Oe6e5]} 31. Qc4 {[%emt 0:01:34]} Ra3 {[%emt 0:01:48]} 32. Rb2 {[%emt 0:02:30]} Bd5 {[%emt 0:01:08]} (32... Rxa4 $2 33. Qc7 Qc8 34. Qxb7 $18 (34. Rxb7 Qxc7 35. Rxc7 d5 $18)) 33. Qc7 {[%emt 0:01:37] Droht stark Rb8.} (33. Qxa6 Qd8 34. Bc1 Ra1 $11) 33... Qxa4 $2 {[%emt 0:00:31][%mdl 8192]} (33... Rxa4 $2 {zu gefräßig.} 34. Rb8 Rc4 35. Rxe8 $18) (33... Qe7 $14 34. Qxe7 Bxe7) 34. Rb8 $18 {[%emt 0:01:41][%cal Oc7e7] Droht Matt per Qe7!} Rb3 {[%emt 0:07:21]} 35. Rd8 {[%emt 0:00:27][%cal Oc7e7] jetzt Qe7! und aus.} ({Weniger gut wäre} 35. Qxd6 Rxb8 36. Qxb8 Qb4 37. Qxb4 Bxb4 $16) 35... Kg7 {[%emt 0:01:35] [#]} 36. Qc8 {[%emt 0:03:00]} ({Schwächer ist} 36. Rd7 Rb7 37. Rxf7+ Kg8 38. Rxf8+ Kxf8 39. Qxd6+ Kg8 $14) ({Der einzige Zug:} 36. Rc8 $1 $18 {Beabsichtigt Qd8 und Matt.} Rxe3 37. Kxe3 Qa3+ 38. Kf2 Qf3+ 39. Ke1) 36... Bb7 $1 $11 {[%emt 0:00:09]} 37. Qc1 {[%emt 0:02:29][%cal Og3h5] Weiss will mit Nh5+! Matt setzen.} Be7 {[%emt 0:00:01] Das Brett brennt.} 38. Rb8 {[%emt 0:01:59]} (38. Qc7 $1 $11 Bxd8 39. Qxd8) 38... Qb4 $2 {[%emt 0:01:31]} (38... Qa5 $1 $15 {bleibt weiter vorne.} 39. Qc4 Rb1) 39. Bg5 $4 {[%emt 0:01:15][%mdl 8192]} (39. Bh6+ $18 Kh7 40. Qf4) 39... Bxg5 {[%emt 0:00:35]} 40. Qxg5 {[%emt 0:00:56]} Rf3+ {[%emt 0:00:03]} 41. Kg2 {[%emt 0:00:33]} Rf5+ {[%emt 0:00:34] Gewichteter Fehlerwert: Weiß=0.58/Schwarz=0.36.  Verlustzug:     	---       	Schwarz=2     Gewinn verpasst:   	Weiß=1     	---        Fehler:       	Weiß=2     	Schwarz=1     Ungenau:       	Weiß=6     	Schwarz=5     OK:         	Weiß=6     	Schwarz=7     Bester:       	Weiß=1     	Schwarz=2} 0-1

[Event "Nakhchivan Open 2024"]
[Site "Nakhchivan"]
[Date "2024.01.14"]
[Round "8.6"]
[White "Gulumov, Muthat"]
[Black "Babayeva, Nasrin"]
[Result "1-0"]
[ECO "B01"]
[WhiteElo "1843"]
[BlackElo "1806"]
[Annotator "NA COMBH"]
[PlyCount "76"]
[EventDate "2024.01.11"]
[EventType "swiss"]
[EventCountry "AZE"]
[SourceTitle "playchess.com"]
[Source "ChessBase"]
[SourceQuality "1"]
[TimeControl "5400+30"]

1. e4 {[%emt 0:00:01]} d5 {[%emt 0:00:07]} 2. exd5 {[%emt 0:00:06]} Qxd5 {[%emt 0:00:08]} 3. Nc3 {[%emt 0:00:04]} Qa5 {[%emt 0:00:06]} 4. d4 {[%emt 0:00:05]} Nf6 {[%emt 0:00:10]} 5. Nf3 {[%emt 0:00:05]} Bf5 {[%emt 0:00:10]} 6. Bd2 {[%emt 0:00:33]} c6 {[%emt 0:03:07]} 7. Bc4 {[%emt 0:06:31]} e6 {[%emt 0:00:09]} 8. Nh4 {[%emt 0:02:50]} Bg4 {[%emt 0:03:17]} 9. Be2 {[%emt 0:03:44]} Bxe2 {[%emt 0:00:55]} 10. Qxe2 {[%emt 0:00:08]} Bb4 {[%emt 0:00:17]} 11. O-O {[%emt 0:01:20]} O-O {[%emt 0:00:28]} 12. a3 {[%emt 0:00:37]} Bxc3 {[%emt 0:00:09]} 13. Bxc3 {[%emt 0:00:06]} Qc7 {[%emt 0:00:11]} 14. Rad1 {[%emt 0:01:06]} Nbd7 {[%emt 0:00:35]} 15. Nf3 {[%emt 0:00:34]} Rad8 {[%emt 0:00:34]} 16. Bb4 {[%emt 0:03:54]} Rfe8 {[%emt 0:01:53]} 17. c4 {[%emt 0:01:57]} c5 {[%emt 0:15:31]} 18. dxc5 {[%emt 0:00:07]} Nxc5 {[%emt 0:00:06]} 19. Bc3 {[%emt 0:00:12]} Nce4 {[%emt 0:01:46]} 20. Be5 {[%emt 0:01:43]} Qe7 {[%emt 0:05:54]} 21. b4 {[%emt 0:01:43]} Rxd1 {[%emt 0:01:17]} 22. Rxd1 {[%emt 0:00:05]} Rd8 23. h3 {[%emt 0:01:49]} h6 {[%emt 0:04:27]} 24. c5 {[%emt 0:02:26]} a6 {[%emt 0:11:09]} 25. Qc2 {[%emt 0:03:00]} Rxd1+ {[%emt 0:03:51]} 26. Qxd1 {[%emt 0:00:07]} Qe8 {[%emt 0:00:55]} 27. a4 {[%emt 0:02:57]} Nd5 {[%emt 0:06:20]} 28. Qb1 {[%emt 0:03:14]} f5 {[%emt 0:06:51]} 29. Qb3 {[%emt 0:01:13]} Qc8 {[%emt 0:05:51]} 30. Nd4 {[%emt 0:01:08]} g6 {[%emt 0:09:58]} 31. h4 {[%emt 0:03:13]} Kf7 {[%emt 0:08:26]} 32. h5 {[%emt 0:01:07]} a5 {[%emt 0:02:47]} 33. f3 {[%emt 0:01:12]} Ng5 {[%emt 0:01:33]} 34. bxa5 {[%emt 0:04:20]} Qxc5 {[%emt 0:01:04]} 35. Qxb7+ {[%emt 0:00:05]} Ne7 {[%emt 0:00:07]} 36. Qc7 {[%emt 0:03:40]} Qxc7 {[%emt 0:03:05]} 37. Bxc7 Nd5 38. Bd8 Ke8 1-0

[Event "Nakhchivan Open 2024"]
[Site "Nakhchivan"]
[Date "2024.01.15"]
[Round "9.1"]
[White "Hasanzade, Toghrul"]
[Black "Kul, Ozdemir Efe"]
[Result "1/2-1/2"]
[ECO "B06"]
[WhiteElo "2329"]
[BlackElo "2223"]
[Annotator "RC"]
[PlyCount "37"]
[EventDate "2024.01.11"]
[EventType "swiss"]
[EventCountry "AZE"]
[SourceTitle "playchess.com"]
[Source "ChessBase"]
[SourceQuality "1"]
[TimeControl "5400+30"]

1. e4 {[%emt 0:00:03]} g6 {[%emt 0:09:37]} 2. d4 {[%emt 0:00:07]} Bg7 {[%emt 0:00:08]} 3. Nc3 {[%emt 0:00:06]} c6 {[%emt 0:00:09]} 4. Nf3 {[%emt 0:03:43]} d6 {[%emt 0:00:38]} 5. h3 {[%emt 0:00:16]} Nd7 {[%emt 0:00:33]} 6. a4 {[%emt 0:01:39]} Qc7 {[%emt 0:04:04]} 7. a5 {[%emt 0:01:15]} Ngf6 {[%emt 0:01:13]} 8. Be3 {[%emt 0:05:27]} O-O {[%emt 0:00:46]} 9. Be2 {[%emt 0:04:31]} e5 {[%emt 0:09:39]} 10. O-O {[%emt 0:05:13]} exd4 {[%emt 0:03:49]} 11. Bxd4 {[%emt 0:12:01]} Re8 {[%emt 0:01:07]} 12. Bc4 {[%emt 0:01:08]} Ne5 {[%emt 0:02:44]} 13. Ba2 {[%emt 0:08:51]} Be6 {[%emt 0:01:53]} 14. Bxe6 {[%emt 0:04:23]} Rxe6 {[%emt 0:00:55]} 15. Nd2 {[%emt 0:05:25]} Ree8 {[%emt 0:07:12]} 16. f4 {[%emt 0:07:57]} Ned7 {[%emt 0:01:10]} 17. Re1 {[%emt 0:03:30]} Nc5 {[%emt 0:20:59]} 18. e5 {[%emt 0:05:10]} Nfd7 {[%emt 0:02:39]} 19. Nc4 {[%emt 0:09:37]} 1/2-1/2

[Event "Nakhchivan Open 2024"]
[Site "Nakhchivan"]
[Date "2024.01.15"]
[Round "9.2"]
[White "Gasimov, Parviz"]
[Black "Israilov, Agil"]
[Result "1/2-1/2"]
[ECO "B11"]
[WhiteElo "2362"]
[BlackElo "2114"]
[Annotator "RC"]
[PlyCount "59"]
[EventDate "2024.01.11"]
[EventType "swiss"]
[EventCountry "AZE"]
[SourceTitle "playchess.com"]
[Source "ChessBase"]
[SourceQuality "1"]
[TimeControl "5400+30"]

1. e4 {[%emt 0:00:19]} c6 {[%emt 0:00:38]} 2. Nc3 {[%emt 0:01:20]} d5 {[%emt 0:00:05]} 3. Nf3 {[%emt 0:00:04]} Bg4 {[%emt 0:00:04]} 4. h3 {[%emt 0:00:05]} Bxf3 {[%emt 0:00:04]} 5. Qxf3 {[%emt 0:00:05]} e6 {[%emt 0:00:06]} 6. d4 {[%emt 0:01:54]} Nf6 {[%emt 0:00:06]} 7. Bd3 {[%emt 0:04:33]} dxe4 {[%emt 0:00:48]} 8. Nxe4 {[%emt 0:00:18]} Nxe4 {[%emt 0:00:04]} 9. Qxe4 {[%emt 0:01:24]} Nd7 {[%emt 0:00:07]} 10. c3 {[%emt 0:05:45]} Nf6 {[%emt 0:00:05]} 11. Qe2 {[%emt 0:00:23]} Qd5 {[%emt 0:00:07]} 12. O-O {[%emt 0:00:23]} Bd6 {[%emt 0:00:05]} 13. Be3 {[%emt 0:05:49]} O-O {[%emt 0:00:41]} 14. c4 {[%emt 0:07:22]} Qh5 {[%emt 0:00:17]} 15. Rad1 {[%emt 0:05:29]} Qxe2 {[%emt 0:01:52]} 16. Bxe2 {[%emt 0:00:16]} Rfd8 {[%emt 0:00:19]} 17. Bf3 {[%emt 0:03:56]} Rd7 {[%emt 0:00:43]} 18. Rd3 {[%emt 0:09:42]} Bc7 {[%emt 0:01:31]} 19. Rfd1 {[%emt 0:03:05]} Rad8 {[%emt 0:00:17]} 20. Be2 {[%emt 0:03:20]} Kf8 {[%emt 0:05:07]} 21. Kf1 {[%emt 0:02:43]} h6 {[%emt 0:06:51]} 22. g4 {[%emt 0:02:35]} Bb6 {[%emt 0:12:14]} 23. Kg2 {[%emt 0:01:59]} Ne4 {[%emt 0:05:41]} 24. f3 {[%emt 0:09:05]} Nf6 {[%emt 0:00:07]} 25. Kf2 {[%emt 0:01:13]} Re8 {[%emt 0:02:55]} 26. h4 {[%emt 0:01:37]} h5 {[%emt 0:09:58]} 27. g5 {[%emt 0:03:48]} Ng8 {[%emt 0:00:25]} 28. f4 {[%emt 0:00:14]} g6 {[%emt 0:00:32]} 29. Bf3 Ne7 {[%emt 0:01:13]} 30. Be4 1/2-1/2

[Event "Nakhchivan Open 2024"]
[Site "Nakhchivan"]
[Date "2024.01.15"]
[Round "9.3"]
[White "Ahmadov, Fariz"]
[Black "Gulumov, Muthat"]
[Result "1-0"]
[ECO "D02"]
[WhiteElo "2193"]
[BlackElo "1843"]
[Annotator "RC"]
[PlyCount "91"]
[EventDate "2024.01.11"]
[EventType "swiss"]
[EventCountry "AZE"]
[SourceTitle "playchess.com"]
[Source "ChessBase"]
[SourceQuality "1"]
[TimeControl "5400+30"]

1. d4 {[%emt 0:01:49]} d5 {[%emt 0:01:24]} 2. Nf3 {[%emt 0:01:26]} Nf6 {[%emt 0:00:45]} 3. g3 {[%emt 0:00:52]} e6 {[%emt 0:02:10]} 4. Bg2 {[%emt 0:04:18]} c5 {[%emt 0:04:02]} 5. O-O {[%emt 0:02:26]} cxd4 {[%emt 0:03:24]} 6. Nxd4 {[%emt 0:01:05]} Nc6 {[%emt 0:00:06]} 7. c4 {[%emt 0:00:54]} Bc5 {[%emt 0:03:46]} 8. Nxc6 {[%emt 0:02:57]} bxc6 {[%emt 0:00:06]} 9. Qc2 {[%emt 0:00:05]} Bb6 {[%emt 0:05:29]} 10. Rd1 {[%emt 0:01:07]} O-O {[%emt 0:00:28]} 11. e4 {[%emt 0:00:07]} Ng4 {[%emt 0:05:34]} 12. c5 {[%emt 0:04:58]} Bc7 {[%emt 0:00:10]} 13. Nc3 {[%emt 0:07:05]} Qe7 14. Qe2 {[%emt 0:03:36]} d4 {[%emt 0:09:48]} 15. Rxd4 {[%emt 0:05:11]} e5 {[%emt 0:01:59]} 16. Rd1 {[%emt 0:03:19]} Qxc5 {[%emt 0:00:37]} 17. h3 {[%emt 0:00:44]} Nf6 {[%emt 0:00:40]} 18. Be3 {[%emt 0:00:23]} Qa5 {[%emt 0:02:13]} 19. a3 {[%emt 0:02:35]} Qa6 {[%emt 0:03:19]} 20. Qc2 {[%emt 0:05:28]} Bb6 {[%emt 0:06:00]} 21. Na4 {[%emt 0:02:38]} Bxe3 {[%emt 0:00:49]} 22. fxe3 {[%emt 0:02:25]} Be6 {[%emt 0:01:37]} 23. Nc5 {[%emt 0:00:51]} Qb6 {[%emt 0:00:10]} 24. Rd2 {[%emt 0:03:43]} Rab8 {[%emt 0:01:11]} 25. Qc3 {[%emt 0:00:34]} Rfe8 {[%emt 0:00:35]} 26. Kh2 {[%emt 0:00:40]} h5 {[%emt 0:00:21]} 27. Rf1 {[%emt 0:00:15]} Qb5 {[%emt 0:01:12]} 28. b4 {[%emt 0:03:42]} a5 {[%emt 0:08:58]} 29. bxa5 {[%emt 0:01:52]} Ra8 {[%emt 0:02:15]} 30. a6 {[%emt 0:03:40]} Qc4 {[%emt 0:01:49]} 31. Rc1 {[%emt 0:00:52]} Qxc3 {[%emt 0:06:25]} 32. Rxc3 {[%emt 0:00:24]} Bc8 {[%emt 0:02:21]} 33. Bf1 {[%emt 0:00:12]} Kf8 {[%emt 0:01:03]} 34. Rd6 {[%emt 0:00:22]} Ke7 {[%emt 0:01:42]} 35. Rxc6 {[%emt 0:00:12]} Rd8 {[%emt 0:00:09]} 36. Rd3 {[%emt 0:00:36]} Rxd3 {[%emt 0:00:35]} 37. Bxd3 {[%emt 0:00:06]} Nd7 {[%emt 0:00:25]} 38. Nxd7 {[%emt 0:00:26]} Bxd7 {[%emt 0:00:10]} 39. Rc7 {[%emt 0:00:11]} Kd6 {[%emt 0:00:12]} 40. Rb7 {[%emt 0:00:03]} Be6 {[%emt 0:00:07]} 41. a4 {[%emt 0:00:53]} Kc6 {[%emt 0:00:11]} 42. Bb5+ {[%emt 0:00:05]} Kd6 {[%emt 0:00:10]} 43. a7 {[%emt 0:00:43]} g5 {[%emt 0:00:10]} 44. h4 {[%emt 0:00:26]} g4 {[%emt 0:00:13]} 45. Kg1 {[%emt 0:00:18]} Bb3 {[%emt 0:00:22]} 46. Be8 {[%emt 0:00:53]} 1-0

[Event "Nakhchivan Open 2024"]
[Site "Nakhchivan"]
[Date "2024.01.15"]
[Round "9.4"]
[White "Baghirov, Mahammad"]
[Black "Hasanli, Rza"]
[Result "0-1"]
[ECO "C55"]
[WhiteElo "1621"]
[BlackElo "1622"]
[Annotator "NA RC"]
[PlyCount "106"]
[EventDate "2024.01.11"]
[EventType "swiss"]
[EventCountry "AZE"]
[SourceTitle "playchess.com"]
[Source "ChessBase"]
[SourceQuality "1"]
[TimeControl "5400+30"]

1. e4 {[%emt 0:00:42]} e5 {[%emt 0:00:08]} 2. Nf3 {[%emt 0:00:06]} Nc6 {[%emt 0:00:06]} 3. Bc4 {[%emt 0:00:32]} Nf6 {[%emt 0:00:09]} 4. d3 {[%emt 0:00:19]} h6 {[%emt 0:00:13]} 5. Nc3 {[%emt 0:00:12]} d6 {[%emt 0:00:22]} 6. h3 {[%emt 0:00:10]} g6 {[%emt 0:00:29]} 7. Be3 {[%emt 0:00:24]} Bg7 {[%emt 0:00:35]} 8. Qd2 {[%emt 0:00:03]} Na5 {[%emt 0:01:42]} 9. Bb3 {[%emt 0:00:55]} c6 {[%emt 0:01:08]} 10. Rd1 {[%emt 0:04:38]} Nxb3 {[%emt 0:07:24]} 11. axb3 {[%emt 0:00:17]} c5 {[%emt 0:01:51]} 12. Ne2 {[%emt 0:03:05]} Be6 {[%emt 0:02:10]} 13. b4 {[%emt 0:01:37]} b6 {[%emt 0:01:36]} 14. bxc5 {[%emt 0:00:09]} bxc5 {[%emt 0:00:50]} 15. Ra1 {[%emt 0:02:53]} Qb6 {[%emt 0:06:53]} 16. b3 {[%emt 0:02:16]} Nh5 {[%emt 0:01:24]} 17. Qa5 {[%emt 0:01:01]} O-O {[%emt 0:00:21]} 18. g4 {[%emt 0:01:12]} Nf4 {[%emt 0:01:04]} 19. Bxf4 {[%emt 0:01:09]} exf4 {[%emt 0:00:40]} 20. Qxb6 {[%emt 0:01:01]} axb6 {[%emt 0:00:14]} 21. Rxa8 {[%emt 0:01:59]} Rxa8 {[%emt 0:00:09]} 22. Kd2 {[%emt 0:00:06]} g5 {[%emt 0:02:08]} 23. d4 {[%emt 0:02:44]} Kf8 {[%emt 0:02:13]} 24. b4 {[%emt 0:01:29]} Ra3 {[%emt 0:09:31]} 25. bxc5 {[%emt 0:04:38]} bxc5 {[%emt 0:01:03]} 26. Ne1 {[%emt 0:00:59]} f3 {[%emt 0:01:50]} 27. Nc3 {[%emt 0:01:38]} Bxd4 {[%emt 0:06:20]} 28. Nb5 {[%emt 0:00:06]} Ra4 {[%emt 0:00:07]} 29. Nxf3 {[%emt 0:01:08]} Bxf2 {[%emt 0:01:18]} 30. Nxd6 {[%emt 0:00:45]} Bg3 {[%emt 0:05:14]} 31. Nf5 {[%emt 0:01:06]} Bf4+ {[%emt 0:00:55]} 32. Kd3 {[%emt 0:00:20]} Bc4+ {[%emt 0:14:50]} 33. Kc3 {[%emt 0:00:14]} Be2 {[%emt 0:00:08]} 34. Ne1 {[%emt 0:05:22]} Ra1 {[%emt 0:04:03]} 35. Rg1 {[%emt 0:04:38]} Rd1 {[%emt 0:00:23]} 36. Kb2 {[%emt 0:01:37]} Bd2 {[%emt 0:03:11]} 37. Ng3 {[%emt 0:01:52]} Bxg4 {[%emt 0:13:18]} 38. hxg4 {[%emt 0:00:01]} Rxe1 {[%emt 0:00:12]} 39. Rxe1 {[%emt 0:02:10]} Bxe1 {[%emt 0:00:06]} 40. Nf5 {[%emt 0:00:03]} h5 {[%emt 0:01:45]} 41. gxh5 {[%emt 0:00:01]} g4 {[%emt 0:00:33]} 42. Kc1 {[%emt 0:00:52]} g3 {[%emt 0:00:52]} 43. Nh4 {[%emt 0:02:20]} Bc3 {[%emt 0:03:27]} 44. Kd1 {[%emt 0:00:57]} Bf6 {[%emt 0:00:06]} 45. Nf3 {[%emt 0:00:56]} g2 {[%emt 0:00:48]} 46. Ke2 {[%emt 0:02:43]} Bd4 {[%emt 0:00:10]} 47. c3 {[%emt 0:02:43]} g1=Q {[%emt 0:00:17]} 48. Nxg1 {[%emt 0:00:02]} Bxg1 {[%emt 0:00:18]} 49. Kf3 {[%emt 0:00:00]} Bh2 {[%emt 0:00:49]} 50. Kg4 {[%emt 0:00:11]} Be5 {[%emt 0:00:06]} 51. c4 {[%emt 0:00:02]} f6 {[%emt 0:00:49]} 52. Kf5 {[%emt 0:01:10]} Kg7 {[%emt 0:00:09]} 53. Ke6 {[%emt 0:00:08]} Kh6 {[%emt 0:00:09]} 0-1